bitfinex/quotes_BTCUSD_20241128
["timestamp","ask_amount","ask_price","bid_price","bid_amount"]
[1732778997520,0.15130334,95706.0,95705.0,0.0847248]
[1732778997965,0.15130334,95706.0,95705.0,0.1892118]
[1732778998191,0.14530334,95706.0,95705.0,0.1892118]
[1732778998640,0.12438327,95706.0,95705.0,0.1892118]
[1732778999286,0.11972029,95706.0,95705.0,0.1892118]
[1732779004319,0.14087605,95706.0,95705.0,0.1892118]
[1732779004847,0.14087605,95706.0,95705.0,0.0077248]
[1732779005311,0.14087605,95706.0,95705.0,0.1122118]
[1732779008626,0.11972029,95706.0,95705.0,0.1122118]
[1732779009279,0.11972029,95706.0,95705.0,0.0077248]
[1732779012198,0.11972029,95706.0,95705.0,5.0077248]
[1732779013252,0.11372029,95706.0,95705.0,5.0077248]
[1732779014185,0.13418066,95706.0,95705.0,5.0077248]
[1732779017704,0.13418066,95706.0,95705.0,5.1122118]
[1732779018566,0.11372029,95706.0,95705.0,5.0077248]
[1732779018780,0.08106921,95706.0,95705.0,5.1122118]
[1732779019431,0.08006921,95706.0,95705.0,5.1122118]
[1732779019670,0.07806921,95706.0,95705.0,5.25319191]
[1732779020175,0.07806921,95706.0,95705.0,5.46897802]
[1732779020399,0.06170761,95706.0,95705.0,5.70394487]
[1732779020624,0.06170761,95706.0,95705.0,5.46897802]
[1732779021556,0.06170761,95706.0,95705.0,5.65677409]
[1732779021775,0.06170761,95706.0,95705.0,5.64677409]
[1732779022426,0.06170761,95706.0,95705.0,5.65677409]
[1732779022638,0.06170761,95706.0,95705.0,5.64677409]
[1732779023288,0.06170761,95706.0,95705.0,5.64674]
[1732779023491,0.06170761,95706.0,95705.0,5.45890305]
[1732779023740,0.06170761,95706.0,95705.0,5.46890305]
[1732779025034,0.06170761,95706.0,95705.0,5.65674]
[1732779026151,0.06170761,95706.0,95705.0,5.46890305]
[1732779026389,0.06170761,95706.0,95705.0,5.65674]
[1732779026602,0.06170761,95706.0,95705.0,5.46890305]
[1732779026811,0.06170761,95706.0,95705.0,5.65668164]
[1732779027230,0.06170761,95706.0,95705.0,5.65667934]
[1732779027685,0.05,95719.0,95718.0,0.249073]
[1732779027688,0.000863,95739.0,95738.0,0.006]
[1732779027984,0.10370821,95739.0,95738.0,0.12229958]
[1732779028209,0.11075852,95739.0,95738.0,0.12229958]
[1732779028419,0.10475852,95739.0,95738.0,0.21608805]
[1732779028629,0.09770821,95739.0,95738.0,0.12229958]
[1732779028872,0.10570821,95739.0,95738.0,0.12229958]
[1732779029309,0.09770821,95739.0,95738.0,0.12229958]
[1732779029777,0.09770821,95739.0,95738.0,0.12429958]
[1732779030016,0.09770821,95739.0,95738.0,0.12229958]
[1732779030231,0.09770821,95739.0,95738.0,0.12329958]
[1732779030439,0.10475861,95739.0,95738.0,0.12529958]
[1732779030649,0.10475861,95739.0,95738.0,0.12429958]
[1732779031074,0.10475861,95739.0,95738.0,0.12529958]
[1732779033669,0.10475861,95739.0,95738.0,0.02084858]
[1732779033985,0.10475861,95739.0,95738.0,0.02084854]
[1732779034175,0.20920861,95739.0,95738.0,0.009]
[1732779035776,0.20920861,95739.0,95738.0,0.007]
[1732779035990,0.21120861,95739.0,95738.0,0.006]
[1732779036200,0.104455,95735.0,95734.0,0.006]
[1732779036425,0.104457,95733.0,95732.0,0.006]
[1732779036639,0.104458,95732.0,95731.0,0.006]
[1732779036875,0.20730321,95732.0,95731.0,0.006]
[1732779037102,0.21441477,95732.0,95731.0,0.006]
[1732779037528,0.42333277,95732.0,95731.0,0.006]
[1732779038005,0.11095677,95732.0,95731.0,0.006]
[1732779038234,0.21541477,95732.0,95731.0,0.006]
[1732779038919,0.21741477,95732.0,95731.0,0.006]
[1732779040569,0.21741477,95732.0,95731.0,0.0077242]
[1732779043315,0.21041477,95732.0,95731.0,0.0077242]
[1732779043749,0.23136492,95732.0,95731.0,0.0077242]
[1732779044002,0.23436492,95732.0,95731.0,0.0077242]
[1732779044670,0.22936492,95732.0,95731.0,0.0077242]
[1732779045099,0.23836492,95732.0,95731.0,0.0077242]
[1732779047463,0.23836492,95732.0,95731.0,0.0017242]
[1732779047688,0.23836492,95732.0,95731.0,0.0077242]
[1732779048557,0.21741477,95732.0,95731.0,5.0077242]
[1732779049011,0.21030321,95732.0,95731.0,5.0077242]
[1732779050397,0.20730321,95732.0,95731.0,5.0077242]
[1732779050647,0.21030321,95732.0,95731.0,5.0077242]
[1732779050924,0.20430321,95732.0,95731.0,5.0077242]
[1732779051137,0.20130321,95732.0,95731.0,5.0077242]
[1732779051350,0.20630321,95732.0,95731.0,5.0077242]
[1732779052317,0.35630321,95732.0,95731.0,5.0077242]
[1732779052620,0.35930321,95732.0,95731.0,5.0077242]
[1732779052815,0.35630321,95732.0,95731.0,5.0077242]
[1732779053433,0.39185487,95732.0,95731.0,5.0077242]
[1732779053646,0.41294245,95732.0,95731.0,5.0077242]
[1732779054067,0.38125299,95732.0,95731.0,5.0077242]
[1732779055584,0.27679499,95732.0,95731.0,5.0077242]
[1732779055813,0.25570741,95732.0,95731.0,5.0077242]
[1732779056459,0.10570741,95732.0,95731.0,5.0177242]
[1732779057331,0.21016541,95732.0,95731.0,5.0177242]
[1732779057527,0.10570741,95732.0,95731.0,5.0177242]
[1732779057986,0.21016541,95732.0,95731.0,5.0177242]
[1732779058243,0.09970741,95732.0,95731.0,5.0177242]
[1732779059798,0.20416541,95732.0,95731.0,5.0177242]
[1732779060228,0.09970741,95732.0,95731.0,5.0177242]
[1732779060441,0.09970741,95732.0,95731.0,5.1677832]
[1732779060877,0.09970741,95732.0,95731.0,5.0633242]
[1732779061074,0.09970741,95732.0,95731.0,5.1677832]
[1732779061335,0.09970741,95732.0,95731.0,5.0633242]
[1732779061581,0.09470741,95732.0,95731.0,5.0633242]
[1732779061793,0.09170741,95732.0,95731.0,5.0633242]
[1732779062704,0.09170741,95732.0,95731.0,5.0177242]
[1732779064422,0.09370741,95732.0,95731.0,5.0177242]
[1732779064639,0.11508004,95732.0,95731.0,5.0177242]
[1732779065547,0.11608004,95732.0,95731.0,5.0177242]
[1732779066457,0.11508004,95732.0,95731.0,5.0177242]
[1732779066702,0.11608004,95732.0,95731.0,5.0177242]
[1732779066926,0.11408004,95732.0,95731.0,5.0177242]
[1732779067141,0.11608004,95732.0,95731.0,5.0177242]
[1732779068016,0.11508004,95732.0,95731.0,5.0177242]
[1732779068705,0.09370741,95732.0,95731.0,5.0177242]
[1732779070039,0.09270741,95732.0,95731.0,5.0177242]
[1732779070482,0.09170741,95732.0,95731.0,5.0177242]
[1732779070685,0.09170741,95732.0,95731.0,5.1231832]
[1732779071323,0.09170741,95732.0,95731.0,5.0187242]
[1732779071540,0.09170741,95732.0,95731.0,5.1221832]
[1732779071755,0.09170741,95732.0,95731.0,5.1231832]
[1732779072598,0.09170741,95732.0,95731.0,5.1691832]
[1732779072600,0.0008622,95732.0,95731.0,5.2461832]
[1732779073060,0.0008622,95732.0,95731.0,5.38665367]
[1732779073286,0.09912218,95750.0,95731.0,5.38665367]
[1732779073287,0.09570948,95750.0,95749.0,0.006]
[1732779073494,0.13544768,95750.0,95749.0,0.006]
[1732779073716,0.14143587,95750.0,95749.0,0.006]
[1732779074361,0.1088334,95750.0,95749.0,0.006]
[1732779074585,0.2172714,95750.0,95749.0,0.006]
[1732779074802,0.2252714,95750.0,95749.0,0.006]
[1732779075064,0.1208334,95750.0,95749.0,0.006]
[1732779075297,0.1417296,95750.0,95749.0,0.006]
[1732779075987,0.1377296,95750.0,95749.0,0.006]
[1732779076214,0.1417296,95750.0,95749.0,0.006]
[1732779076856,0.1377296,95750.0,95749.0,0.006]
[1732779077076,0.1317296,95750.0,95749.0,0.006]
[1732779077320,0.14065767,95775.0,95763.0,0.016]
[1732779077594,0.208821,95776.0,95763.0,0.016]
[1732779077595,0.15284521,95764.0,95763.0,0.016]
[1732779077809,0.15284521,95764.0,95763.0,0.0178481]
[1732779078745,0.10470741,95764.0,95763.0,0.016]
[1732779079228,0.10470741,95764.0,95762.0,0.006]
[1732779079476,0.2292852,95764.0,95763.0,0.006]
[1732779079708,0.2292852,95764.0,95762.0,0.006]
[1732779079709,0.104424,95763.0,95762.0,0.006]
[1732779079940,0.1248622,95764.0,95762.0,0.006]
[1732779080235,0.104435,95753.0,95752.0,0.016]
[1732779080470,0.31328,95761.0,95760.0,0.006]
[1732779080696,0.41612521,95761.0,95760.0,0.006]
[1732779081825,0.41612521,95761.0,95760.0,0.007]
[1732779082055,0.41612521,95761.0,95760.0,0.001]
[1732779082263,0.41612521,95761.0,95760.0,0.007]
[1732779082476,0.41612521,95761.0,95760.0,0.001]
[1732779082695,0.56612521,95761.0,95760.0,0.008]
[1732779083344,0.56612521,95761.0,95760.0,0.002]
[1732779083561,0.56612521,95761.0,95760.0,0.008]
[1732779083769,0.56612521,95761.0,95760.0,0.002]
[1732779086058,0.58743387,95761.0,95760.0,0.002]
[1732779087566,0.61996531,95761.0,95760.0,0.002]
[1732779088228,0.59265665,95761.0,95760.0,0.002]
[1732779088676,0.59265665,95761.0,95760.0,0.001]
[1732779088896,0.15,95760.0,95759.0,0.006]
[1732779089116,0.25284521,95760.0,95756.0,0.006]
[1732779089337,0.463282,95760.0,95759.0,0.006]
[1732779089542,0.59866864,95760.0,95759.0,0.006]
[1732779090659,0.49424164,95760.0,95759.0,0.006]
[1732779090866,0.60566864,95760.0,95759.0,0.006]
[1732779091519,0.254431,95757.0,95756.0,0.006]
[1732779091757,0.35727621,95757.0,95756.0,0.006]
[1732779092653,0.104437,95751.0,95750.0,0.0017242]
[1732779092873,0.48378221,95751.0,95750.0,0.0017242]
[1732779093112,0.51633439,95751.0,95750.0,0.0017242]
[1732779094449,0.52133439,95751.0,95750.0,0.0017242]
[1732779094889,0.51633439,95751.0,95750.0,0.0017242]
[1732779095122,0.52433439,95751.0,95750.0,0.0017242]
[1732779095344,0.54933439,95751.0,95750.0,0.0017242]
[1732779095829,0.54733439,95751.0,95750.0,0.0017242]
[1732779096040,0.55133439,95751.0,95750.0,0.0017242]
[1732779096540,0.54733439,95751.0,95750.0,0.0017242]
[1732779096782,0.54733439,95751.0,95715.0,0.0492]
[1732779096783,0.403958,95732.0,95715.0,0.006]
[1732779097026,0.53935539,95732.0,95731.0,4.96364502]
[1732779097243,0.87266783,95732.0,95731.0,4.13017702]
[1732779097457,0.87266783,95732.0,95731.0,1.10968502]
[1732779097695,0.333086,95706.0,95705.0,0.0017248]
[1732779097932,0.45893121,95706.0,95705.0,0.0017248]
[1732779099378,0.45893121,95706.0,95705.0,0.00158198]
[1732779099590,0.49224365,95706.0,95705.0,0.00158198]
[1732779099826,0.277493,95700.0,95699.0,0.001725]
[1732779100072,0.38033821,95700.0,95699.0,0.001725]
[1732779101514,0.38933821,95700.0,95699.0,0.001725]
[1732779102168,0.39833821,95700.0,95699.0,0.001725]
[1732779103087,0.37533821,95700.0,95699.0,0.001725]
[1732779104214,0.36633821,95700.0,95699.0,0.001725]
[1732779104442,0.38033821,95700.0,95699.0,0.001725]
[1732779104717,0.38933821,95700.0,95699.0,0.001725]
[1732779105161,0.38033821,95700.0,95699.0,0.001725]
[1732779105374,0.38933821,95700.0,95699.0,0.001725]
[1732779105589,0.39433821,95700.0,95699.0,0.001725]
[1732779106241,0.38933821,95700.0,95699.0,0.001725]
[1732779106470,0.38033821,95700.0,95699.0,0.001725]
[1732779106941,0.38933821,95700.0,95699.0,0.001725]
[1732779107400,0.39833821,95700.0,95699.0,0.001725]
[1732779108288,0.40333821,95700.0,95699.0,0.001725]
[1732779108948,0.39833821,95700.0,95699.0,0.001725]
[1732779109162,0.40433821,95700.0,95699.0,0.001725]
[1732779109377,0.40933821,95700.0,95699.0,0.001725]
[1732779115544,0.38633821,95700.0,95699.0,0.001725]
[1732779116270,1.08633821,95700.0,95699.0,0.001725]
[1732779118873,1.08133821,95700.0,95699.0,0.001725]
[1732779119341,1.08833821,95700.0,95699.0,0.001725]
[1732779120528,1.11465065,95700.0,95699.0,0.001725]
[1732779120766,1.12365065,95700.0,95699.0,0.001725]
[1732779120999,1.13065065,95700.0,95699.0,0.001725]
[1732779121240,1.27705065,95700.0,95699.0,0.001725]
[1732779121480,1.3039812,95700.0,95699.0,0.001725]
[1732779121958,1.2829812,95700.0,95699.0,0.001725]
[1732779122430,1.2859812,95700.0,95699.0,0.001725]
[1732779123652,1.25205065,95700.0,95699.0,0.001725]
[1732779123891,1.24305065,95700.0,95699.0,0.001725]
[1732779124376,1.26105065,95700.0,95699.0,0.001725]
[1732779124885,1.25205065,95700.0,95699.0,0.001725]
[1732779125118,1.24305065,95700.0,95699.0,0.001725]
[1732779125355,1.25205065,95700.0,95699.0,0.001725]
[1732779125590,1.26105065,95700.0,95699.0,0.001725]
[1732779125833,1.29342973,95700.0,95699.0,0.001725]
[1732779126081,0.56105065,95700.0,95699.0,0.001725]
[1732779126569,0.593452,95700.0,95699.0,0.001725]
[1732779127530,1.293452,95700.0,95699.0,0.001725]
[1732779128491,0.593452,95700.0,95699.0,0.001725]
[1732779129151,0.56013956,95700.0,95699.0,0.001725]
[1732779129829,0.26373956,95700.0,95699.0,0.001725]
[1732779130049,0.15924656,95700.0,95699.0,0.001725]
[1732779130298,0.23133821,95700.0,95699.0,0.007725]
[1732779130705,0.22233821,95700.0,95699.0,0.007725]
[1732779130936,0.11784521,95700.0,95699.0,0.007725]
[1732779131159,0.12684521,95700.0,95699.0,0.007725]
[1732779131372,0.39590191,95700.0,95699.0,0.007725]
[1732779131876,0.40090191,95700.0,95699.0,0.007725]
[1732779132107,0.40490191,95700.0,95699.0,0.007725]
[1732779132554,0.30340891,95700.0,95699.0,0.007725]
[1732779132788,0.29440891,95700.0,95699.0,0.007725]
[1732779133019,0.11184521,95700.0,95699.0,0.007725]
[1732779134146,0.21633821,95700.0,95699.0,0.007725]
[1732779134365,0.22433821,95700.0,95699.0,0.007725]
[1732779134604,0.25689656,95700.0,95699.0,0.001725]
[1732779134830,0.44249293,95700.0,95699.0,0.001725]
[1732779135300,0.40689656,95700.0,95699.0,0.001725]
[1732779136695,0.44249293,95700.0,95699.0,0.001725]
[1732779137772,0.46549293,95700.0,95699.0,0.001725]
[1732779138692,0.42989656,95700.0,95699.0,0.001725]
[1732779138916,0.42689656,95700.0,95699.0,0.001725]
[1732779139139,0.42489656,95700.0,95699.0,0.001725]
[1732779139365,0.41089656,95700.0,95699.0,0.001725]
[1732779141156,0.41225973,95700.0,95699.0,0.001725]
[1732779141412,0.41825973,95700.0,95699.0,0.001725]
[1732779141646,0.42525973,95700.0,95699.0,0.001725]
[1732779141898,0.4688561,95700.0,95699.0,0.001725]
[1732779142123,0.4778561,95700.0,95699.0,0.001725]
[1732779142352,0.6194561,95700.0,95699.0,0.001725]
[1732779142569,0.6104561,95700.0,95699.0,0.001725]
[1732779142792,0.6014561,95700.0,95699.0,0.001725]
[1732779143034,0.6194561,95700.0,95699.0,0.001725]
[1732779143278,0.75121764,95700.0,95699.0,0.001725]
[1732779143713,0.6104561,95700.0,95699.0,0.001725]
[1732779144397,0.6014561,95700.0,95699.0,0.001725]
[1732779144846,0.6104561,95700.0,95699.0,0.001725]
[1732779145286,0.6014561,95700.0,95699.0,0.001725]
[1732779145505,0.6194561,95700.0,95699.0,0.001725]
[1732779145729,0.6104561,95700.0,95699.0,0.001725]
[1732779146153,0.6194561,95700.0,95699.0,0.001725]
[1732779148424,0.79811077,95700.0,95699.0,0.001725]
[1732779148849,0.80711077,95700.0,95699.0,0.001725]
[1732779149070,0.6104561,95700.0,95699.0,0.001725]
[1732779149506,0.79811077,95700.0,95699.0,0.001725]
[1732779149939,0.80703289,95700.0,95699.0,0.001725]
[1732779150146,0.78903289,95700.0,95699.0,0.001725]
[1732779150369,0.6014561,95700.0,95699.0,0.001725]
[1732779150598,0.6194561,95700.0,95699.0,0.001725]
[1732779150825,0.62489688,95700.0,95699.0,0.001725]
[1732779151047,0.61589688,95700.0,95699.0,0.001725]
[1732779151493,0.85946522,95700.0,95699.0,0.001725]
[1732779157529,0.254501,95692.0,95691.0,0.0004]
[1732779157751,0.41290456,95692.0,95691.0,0.0004]
[1732779158663,0.42190456,95692.0,95691.0,0.0004]
[1732779159111,0.43090456,95692.0,95691.0,0.0004]
[1732779160163,0.41290456,95692.0,95691.0,0.0004]
[1732779160369,0.42190456,95692.0,95691.0,0.0004]
[1732779160582,0.43090456,95692.0,95691.0,0.0004]
[1732779161893,0.43090456,95692.0,95691.0,0.002125]
[1732779163256,0.41590456,95692.0,95691.0,0.002125]
[1732779163930,0.50971518,95692.0,95691.0,0.002125]
[1732779164158,0.41590456,95692.0,95691.0,0.002125]
[1732779164378,0.50971569,95692.0,95691.0,0.002125]
[1732779164612,0.41590456,95692.0,95691.0,0.002125]
[1732779165543,0.15,95691.0,95679.0,0.002425]
[1732779165758,0.35736021,95680.0,95679.0,0.002425]
[1732779167061,0.36636021,95680.0,95679.0,0.078425]
[1732779167765,0.37236021,95680.0,95679.0,0.078425]
[1732779171374,0.40498506,95680.0,95679.0,0.078425]
[1732779175613,0.40498506,95680.0,95679.0,0.0801504]
[1732779176048,0.40584776,95680.0,95679.0,0.0801504]
[1732779176797,0.15133276,95680.0,95679.0,0.1378504]
[1732779177233,0.11870791,95680.0,95679.0,0.1378504]
[1732779178361,0.11270791,95680.0,95679.0,0.1378504]
[1732779178578,0.10670791,95680.0,95679.0,0.1378504]
[1732779178795,0.10370791,95680.0,95679.0,0.1378504]
[1732779179466,0.09970791,95680.0,95679.0,0.1378504]
[1732779179675,0.10070791,95680.0,95679.0,0.1378504]
[1732779180336,0.20522291,95680.0,95679.0,0.1378504]
[1732779182761,0.20522291,95680.0,95679.0,0.13616823]
[1732779183233,0.20522291,95680.0,95679.0,0.00247647]
[1732779187817,0.20522291,95680.0,95679.0,0.01247647]
[1732779188036,0.20522291,95680.0,95679.0,0.05917647]
[1732779192560,0.10070791,95680.0,95679.0,0.05917647]
[1732779192787,0.20522291,95680.0,95679.0,0.05917647]
[1732779193233,0.19922291,95680.0,95679.0,0.05917647]
[1732779201305,0.21558598,95680.0,95679.0,0.05917647]
[1732779202990,0.21558598,95680.0,95679.0,0.00247647]
[1732779203422,0.40137085,95680.0,95679.0,0.00247647]
[1732779203858,0.43398576,95680.0,95679.0,0.00247647]
[1732779204291,0.52795089,95680.0,95679.0,0.00247647]
[1732779204505,0.52695089,95680.0,95679.0,0.00247647]
[1732779204729,0.52995089,95680.0,95679.0,0.00247647]
[1732779204966,0.52795089,95680.0,95679.0,0.00247647]
[1732779205208,0.52495089,95680.0,95679.0,0.00247647]
[1732779205412,0.52895089,95680.0,95679.0,0.00247647]
[1732779206316,0.53795089,95680.0,95679.0,0.00247647]
[1732779206527,0.52895089,95680.0,95679.0,0.00247647]
[1732779206961,0.53795089,95680.0,95679.0,0.00247647]
[1732779207172,0.44398576,95680.0,95679.0,0.00247647]
[1732779207374,0.53789685,95680.0,95679.0,0.00247647]
[1732779207611,0.44398576,95680.0,95679.0,0.00247647]
[1732779208253,0.43798576,95680.0,95679.0,0.00247647]
[1732779212072,0.66069667,95680.0,95679.0,0.0017254]
[1732779212297,0.56678576,95680.0,95679.0,0.0017254]
[1732779212730,0.75459074,95680.0,95679.0,0.0017254]
[1732779213148,0.56678576,95680.0,95679.0,0.0017254]
[1732779213359,0.56278576,95680.0,95679.0,0.0017254]
[1732779214041,0.57678576,95680.0,95679.0,0.0017254]
[1732779214487,0.55378576,95680.0,95679.0,0.0017254]
[1732779214701,0.56978576,95680.0,95679.0,0.0017254]
[1732779218294,0.75759074,95680.0,95679.0,0.0017254]
[1732779220305,0.56978576,95680.0,95679.0,0.0017254]
[1732779222664,0.56978576,95680.0,95679.0,4e-07]
[1732779223339,0.56378576,95680.0,95679.0,4e-07]
[1732779223807,0.54778576,95680.0,95679.0,4e-07]
[1732779224069,0.56578576,95680.0,95679.0,4e-07]
[1732779224296,0.55678576,95680.0,95679.0,4e-07]
[1732779224524,0.54778576,95680.0,95679.0,4e-07]
[1732779224762,0.55678576,95680.0,95679.0,4e-07]
[1732779224987,0.59971631,95680.0,95679.0,4e-07]
[1732779225427,0.62271631,95680.0,95679.0,4e-07]
[1732779228632,0.62271631,95680.0,95674.0,4e-07]
[1732779228633,0.29962,95675.0,95674.0,4e-07]
[1732779228865,0.43508012,95675.0,95674.0,4e-07]
[1732779229093,0.47086499,95675.0,95674.0,4e-07]
[1732779230277,0.47886499,95675.0,95674.0,4e-07]
[1732779230733,0.48786499,95675.0,95674.0,4e-07]
[1732779231939,0.48786499,95675.0,95671.0,0.0004]
[1732779231940,0.356935,95661.0,95660.0,8e-07]
[1732779232175,0.53749512,95661.0,95660.0,8e-07]
[1732779232415,0.57327999,95661.0,95660.0,8e-07]
[1732779232622,0.57327999,95661.0,95654.0,0.0017242]
[1732779232623,0.254542,95655.0,95654.0,1e-06]
[1732779232857,0.56630039,95655.0,95654.0,1e-06]
[1732779233072,0.42578699,95655.0,95654.0,1e-06]
[1732779233750,0.39000212,95655.0,95654.0,1e-06]
[1732779233967,0.39700212,95655.0,95654.0,1e-06]
[1732779234448,0.39900212,95655.0,95654.0,1e-06]
[1732779234670,0.39000212,95655.0,95654.0,1e-06]
[1732779234879,0.40800212,95655.0,95654.0,1e-06]
[1732779235317,0.5016013,95655.0,95654.0,1e-06]
[1732779235808,0.40800212,95655.0,95654.0,1e-06]
[1732779236455,0.39900212,95655.0,95654.0,1e-06]
[1732779236671,0.39800212,95655.0,95654.0,1e-06]
[1732779237090,0.40700212,95655.0,95654.0,1e-06]
[1732779237720,0.39900212,95655.0,95654.0,1e-06]
[1732779237906,0.39800212,95655.0,95654.0,1e-06]
[1732779238130,0.40700212,95655.0,95654.0,1e-06]
[1732779238385,0.39200212,95655.0,95654.0,1e-06]
[1732779238873,0.42778699,95655.0,95654.0,1e-06]
[1732779239347,0.41978699,95655.0,95654.0,1e-06]
[1732779239529,0.42678699,95655.0,95654.0,1e-06]
[1732779239743,0.43578699,95655.0,95654.0,1e-06]
[1732779245464,0.43664939,95655.0,95654.0,1e-06]
[1732779245915,0.51874939,95655.0,95654.0,1e-06]
[1732779249885,0.61234788,95655.0,95654.0,1e-06]
[1732779250533,0.51874939,95655.0,95654.0,1e-06]
[1732779252037,0.43664939,95655.0,95654.0,1e-06]
[1732779253324,0.43064939,95655.0,95654.0,1e-06]
[1732779253522,0.42164939,95655.0,95654.0,1e-06]
[1732779253732,0.41464939,95655.0,95654.0,1e-06]
[1732779253967,0.42164939,95655.0,95654.0,1e-06]
[1732779254173,0.51524788,95655.0,95654.0,1e-06]
[1732779254387,0.42164939,95655.0,95654.0,1e-06]
[1732779254862,0.43064939,95655.0,95654.0,1e-06]
[1732779255282,0.56004939,95655.0,95654.0,1e-06]
[1732779255491,0.58304939,95655.0,95654.0,1e-06]
[1732779255703,0.77024638,95655.0,95654.0,1e-06]
[1732779255912,0.58304939,95655.0,95654.0,1e-06]
[1732779256327,1.47024638,95655.0,95654.0,1e-06]
[1732779256511,1.26704939,95655.0,95654.0,1e-06]
[1732779256748,1.45424638,95655.0,95654.0,1e-06]
[1732779256976,1.28304939,95655.0,95654.0,1e-06]
[1732779257437,1.28304939,95655.0,95635.0,0.00247527]
[1732779257438,0.254553,95645.0,95635.0,0.00247527]
[1732779257664,0.39001312,95645.0,95635.0,0.0017242]
[1732779257869,0.254563,95636.0,95635.0,0.0017242]
[1732779258088,0.39002312,95636.0,95635.0,0.0017242]
[1732779258614,0.39002312,95636.0,95635.0,0.00247527]
[1732779258950,0.39002312,95636.0,95635.0,0.0017242]
[1732779259901,0.39502312,95636.0,95635.0,0.0017242]
[1732779260340,0.40402312,95636.0,95635.0,0.0017242]
[1732779260548,0.39902312,95636.0,95635.0,0.0017242]
[1732779261003,0.39502312,95636.0,95635.0,0.0017242]
[1732779261485,0.40402312,95636.0,95635.0,0.0017242]
[1732779261704,0.41139536,95636.0,95635.0,0.0017242]
[1732779262178,0.40639536,95636.0,95635.0,0.0017242]
[1732779262609,0.41339536,95636.0,95635.0,0.0017242]
[1732779263050,0.40639536,95636.0,95635.0,0.0017242]
[1732779263280,0.41339536,95636.0,95635.0,0.0017242]
[1732779263518,0.42239536,95636.0,95635.0,0.0017242]
[1732779264218,0.45818023,95636.0,95635.0,0.0017242]
[1732779264660,0.41339536,95636.0,95635.0,0.0017242]
[1732779265156,0.44918023,95636.0,95635.0,0.0017242]
[1732779265621,0.45118023,95636.0,95635.0,0.0017242]
[1732779266126,0.45818023,95636.0,95635.0,0.0017242]
[1732779266357,0.47771065,95636.0,95635.0,0.0017242]
[1732779266581,0.47071065,95636.0,95635.0,0.0017242]
[1732779266792,0.46971065,95636.0,95635.0,0.0017242]
[1732779267027,0.47871065,95636.0,95635.0,0.0017242]
[1732779267240,0.45918023,95636.0,95635.0,0.0017242]
[1732779267457,0.40639536,95636.0,95635.0,0.0017242]
[1732779267672,0.40639536,95636.0,95635.0,0.1304242]
[1732779267673,0.42339536,95636.0,95635.0,0.1304242]
[1732779268123,0.41439536,95636.0,95635.0,0.1304242]
[1732779268337,0.41739536,95636.0,95635.0,0.1304242]
[1732779268765,0.40839536,95636.0,95635.0,0.0812242]
[1732779269188,0.40039536,95636.0,95635.0,0.0812242]
[1732779269401,0.40839536,95636.0,95635.0,0.0812242]
[1732779270064,0.40039536,95636.0,95635.0,0.0812242]
[1732779270284,0.40939536,95636.0,95635.0,0.0812242]
[1732779270504,0.41439536,95636.0,95635.0,0.0812242]
[1732779270736,0.40539536,95636.0,95635.0,0.0812242]
[1732779270964,0.40939536,95636.0,95635.0,0.0812242]
[1732779271422,0.40939536,95636.0,95635.0,0.0017242]
[1732779272299,0.41439536,95636.0,95635.0,0.0017242]
[1732779275508,0.40939536,95636.0,95635.0,0.0017242]
[1732779275647,0.50308704,95636.0,95635.0,0.0017242]
[1732779275827,0.50808704,95636.0,95635.0,0.0017242]
[1732779276028,0.41439536,95636.0,95635.0,0.0017242]
[1732779276250,0.50816925,95636.0,95635.0,0.0017242]
[1732779276462,0.49416925,95636.0,95635.0,0.0017242]
[1732779276873,0.50816925,95636.0,95635.0,0.0017242]
[1732779277307,0.41439536,95636.0,95635.0,0.0017242]
[1732779277522,0.41439536,95636.0,95635.0,0.00247527]
[1732779277523,0.508187,95636.0,95635.0,0.00247527]
[1732779277726,0.499187,95636.0,95635.0,0.00247527]
[1732779277943,0.508187,95636.0,95635.0,0.00247527]
[1732779278376,0.503187,95636.0,95635.0,0.00247527]
[1732779278813,0.254569,95630.0,95629.0,0.03853175]
[1732779279047,0.39002912,95630.0,95629.0,0.03853175]
[1732779279291,0.40957992,95630.0,95629.0,0.03853175]
[1732779280393,0.41857992,95630.0,95629.0,0.03853175]
[1732779280605,0.40957992,95630.0,95629.0,0.03853175]
[1732779281040,0.15501092,95630.0,95629.0,0.03853175]
[1732779281278,0.12239601,95630.0,95629.0,0.22320175]
[1732779281527,0.12239601,95630.0,95629.0,0.11863175]
[1732779281528,0.13139601,95630.0,95629.0,0.11863175]
[1732779281744,0.13139601,95630.0,95629.0,0.22320175]
[1732779281981,0.0285508,95630.0,95629.0,0.22320175]
[1732779282225,0.0325508,95630.0,95629.0,0.23320175]
[1732779282692,0.0285508,95630.0,95629.0,0.23320175]
[1732779283351,0.0135508,95630.0,95629.0,0.23320175]
[1732779283767,0.0135508,95630.0,95629.0,0.23420175]
[1732779284002,0.0135508,95630.0,95629.0,0.23320175]
[1732779284217,0.0135508,95630.0,95629.0,0.23420175]
[1732779284663,0.104559,95639.0,95629.0,0.23420175]
[1732779284904,0.10284521,95638.0,95630.0,0.10641962]
[1732779285373,0.10284521,95638.0,95631.0,0.0801]
[1732779285581,0.10284521,95638.0,95635.0,0.0476]
[1732779285793,0.10284521,95638.0,95636.0,0.0801]
[1732779286878,0.104562,95637.0,95636.0,0.0801]
[1732779287081,0.20740721,95637.0,95636.0,0.0801]
[1732779287924,0.20840721,95637.0,95636.0,0.0801]
[1732779288373,0.20740721,95637.0,95636.0,0.0801]
[1732779288581,0.20840721,95637.0,95636.0,0.0801]
[1732779289883,0.23964919,95637.0,95636.0,0.0801]
[1732779290962,0.23864919,95637.0,95636.0,0.0801]
[1732779291167,0.23964919,95637.0,95636.0,0.0801]
[1732779291378,0.20840721,95637.0,95636.0,0.0801]
[1732779293360,0.20740721,95637.0,95636.0,0.0801]
[1732779293768,0.20840721,95637.0,95636.0,0.0801]
[1732779293990,0.20840721,95637.0,95635.0,0.0493252]
[1732779293991,0.10384521,95637.0,95635.0,0.0017252]
[1732779294184,0.20740821,95636.0,95635.0,0.0017252]
[1732779294394,0.24003843,95636.0,95635.0,0.0017252]
[1732779294604,0.23865259,95636.0,95635.0,0.0017252]
[1732779295236,0.25817952,95636.0,95635.0,0.0017252]
[1732779295470,0.22693514,95636.0,95635.0,0.0017252]
[1732779297035,0.22693514,95636.0,95635.0,0.0027252]
[1732779297452,0.23593514,95636.0,95635.0,0.0017252]
[1732779297895,0.23993514,95636.0,95635.0,0.0017252]
[1732779298458,0.23393514,95636.0,95635.0,0.0017252]
[1732779299577,0.26648741,95636.0,95635.0,0.0017252]